fUSD/lending_fUSD_20240223
["ID","MTS","AMOUNT","RATE_DAILY","PERIOD"]
[315011880,1708729853921,-186.0,0.00030781,2]
[315011881,1708729853930,-645.48,0.00030914,2]
[315011882,1708729853940,-3717.32,0.00031056,2]
[315011883,1708729853949,-289.81,0.00031394,2]
[315011884,1708729853959,-500.0,0.0003158,2]
[315011885,1708729853969,-7992.17865922,0.00031617,2]
[315011886,1708729853980,-151.0,0.00031629,120]
[315011887,1708729853989,-500.0,0.00031717,2]
[315011888,1708729853999,-230726.872445,0.000318,3]
[315011889,1708729854008,-1254.72560723,0.0003183,7]
[315011890,1708729854018,-429.55248463,0.00031847,7]
[315011891,1708729854028,-500.0,0.00031854,2]
[315011892,1708729854037,-248.0701991,0.00031865,7]
[315011893,1708729854047,-10801.7920651,0.00031882,7]
[315011894,1708729854056,-500.0,0.00031991,2]
[315011895,1708729854066,-500.0,0.00032128,2]
[315011896,1708729854075,-186.0,0.00032151,2]
[315011897,1708729854084,-12612.21403658,0.0003225,7]
[315011898,1708729854094,-1788.74680711,0.0003225,7]
[315011899,1708729854103,-202385.39258318,0.0003225,7]
[315011900,1708729854113,-500.0,0.00032265,2]
[315011901,1708729854122,-151.0,0.00032275,30]
[315011902,1708729854132,-289.81,0.00032338,2]
[315011903,1708729854143,-150.0,0.00032387,2]
[315011904,1708729854152,-150.0,0.00032387,2]
[315011905,1708729854163,-150.0,0.00032387,2]
[315011906,1708729854173,-150.0,0.00032387,2]
[315011907,1708729854183,-150.0,0.00032387,2]
[315011908,1708729854193,-150.0,0.00032387,2]
[315011909,1708729854202,-150.0,0.00032387,2]
[315011910,1708729854211,-150.0,0.00032387,2]
[315011911,1708729854239,-150.0,0.00032387,2]
[315011912,1708729854249,-150.0,0.00032387,2]
[315011913,1708729854259,-150.0,0.00032387,2]
[315011914,1708729854269,-150.0,0.00032387,2]
[315011915,1708729854282,-150.0,0.00032387,2]
[315011916,1708729854292,-150.0,0.00032387,2]
[315011917,1708729854301,-279.40690622,0.00032387,2]
[315011918,1708729854311,-209.04791568,0.00032387,2]
[315011919,1708729854320,-500.0,0.00032402,2]
[315011920,1708729854330,-163.197923,0.0003243,2]
[315011921,1708729854340,-158.196155,0.0003243,2]
[315011922,1708729854350,-155.007165,0.0003243,2]
[315011923,1708729854359,-167.860721,0.0003243,2]
[315011924,1708729854369,-158.196154,0.0003243,2]
[315011925,1708729854378,-167.860721,0.0003243,2]
[315011926,1708729854387,-156.90607,0.0003243,2]
[315011927,1708729854397,-158.196154,0.0003243,2]
[315011928,1708729854406,-158.84317,0.0003243,2]
[315011929,1708729854415,-155.007164,0.0003243,2]
[315011930,1708729854425,-181.731711,0.0003243,2]
[315011931,1708729854435,-500.0,0.00032539,2]
[315011932,1708729854444,-500.0,0.00032676,2]
[315011933,1708729854537,-3717.32,0.000327,2]
[315011934,1708729854548,-5766.10565619,0.000327,2]
[315011935,1708729854557,-500.0,0.00032813,2]
[315011936,1708729854568,-1000.0,0.00032826,2]
[315011937,1708729854577,-167.860721,0.00032836,2]
[315011938,1708729854587,-158.44336474,0.00032865,7]
[315011939,1708729854597,-10000.0,0.00032876,2]
[315011940,1708729854606,-162.58,0.00032877,2]
[315011941,1708729854615,-150.0,0.00032877,2]
[315011942,1708729854625,-150.49,0.00032877,2]
[315011943,1708729854635,-161.43,0.00032877,2]
[315011944,1708729854645,-250.0,0.00032877,2]
[315011945,1708729854655,-260736.929335,0.00032881,7]
[315011946,1708729854664,-8000.0,0.000329,2]
[315011947,1708729854673,-154.20563152,0.00032901,7]
[315011948,1708729854682,-154.20563152,0.00032907,7]
[315011949,1708729854692,-151.0,0.00032933,7]
[315011950,1708729854701,-163.197923,0.00032971,2]
[315011951,1708729854711,-359.0,0.00033,2]
[315011952,1708729854720,-4000.0,0.00033,2]
[315011953,1708729854729,-154.02083881,0.00033081,7]
[315011954,1708729854739,-157.51738774,0.00033092,7]
[315011955,1708729854748,-154.20563152,0.00033116,7]
[315011956,1708729854757,-359.0,0.00033151,2]
[315011957,1708729854767,-645.48,0.00033177,2]
[315011958,1708729854777,-155.76031538,0.00033213,7]
[315011959,1708729854786,-158.196154,0.00033241,2]
[315011960,1708729854796,-155.007164,0.00033241,2]
[315011961,1708729854805,-167.860721,0.00033241,2]
[315011962,1708729854815,-154.20563152,0.0003326,7]
[315011963,1708729854825,-7992.17865922,0.0003336,2]
[315011964,1708729854834,-154.20563152,0.00033426,7]
[315011965,1708729854844,-1217.22,0.000335,2]
[315011966,1708729854853,-1217.22,0.000335,2]
[315011967,1708729854863,-1217.22,0.000335,2]
[315011968,1708729854873,-1217.22,0.000335,2]
[315011969,1708729854882,-1217.22,0.000335,2]
[315011970,1708729854891,-1217.22,0.000335,2]
[315011971,1708729854900,-1217.22,0.000335,2]
[315011972,1708729854910,-1217.22,0.000335,2]
[315011973,1708729854920,-1217.22,0.000335,2]
[315011974,1708729854930,-1217.22,0.000335,2]
[315011975,1708729854940,-1217.22,0.000335,2]
[315011976,1708729854949,-1217.22,0.000335,2]
[315011977,1708729854959,-1217.22,0.000335,2]
[315011978,1708729854969,-1217.22,0.000335,2]
[315011979,1708729854978,-1217.22,0.000335,2]
[315011980,1708729854988,-1217.22,0.000335,2]
[315011981,1708729854997,-1217.22,0.000335,2]
[315011982,1708729855007,-1217.22,0.000335,2]
[315011983,1708729855017,-1217.22,0.000335,2]
[315011984,1708729855026,-1217.22,0.000335,2]
[315011985,1708729855036,-151.0,0.000335,7]
[315011986,1708729855046,-151.0,0.000335,7]
[315011987,1708729855055,-257.243312,0.000335,7]
[315011988,1708729855064,-151.0,0.000335,7]
[315011989,1708729855073,-163.197923,0.00033511,2]
[315011990,1708729855083,-154.20563152,0.00033515,7]
[315011991,1708729855091,-253.0,0.00033521,2]
[315011992,1708729855101,-154.20563152,0.00033527,7]
[315011993,1708729855110,-151.0,0.00033606,4]
[315011994,1708729855119,-167.860721,0.00033646,2]
[315011995,1708729855128,-152.6064863,0.00033719,7]
[315011996,1708729855137,-150.0,0.00033742,2]
[315011997,1708729855147,-157.51738774,0.00033748,7]
[315011998,1708729855156,-159.39088986,0.00033898,7]
[315011999,1708729855168,-153.43437171,0.000339,2]
[315012000,1708729855177,-153.43437171,0.000339,2]
[315012001,1708729855187,-153.43437171,0.000339,2]
[315012002,1708729855197,-153.43437171,0.000339,2]
[315012003,1708729855206,-153.43437171,0.000339,2]
[315012004,1708729855216,-153.43437171,0.000339,2]
[315012005,1708729855225,-154.20563152,0.00033951,7]
[315012006,1708729855234,-154.20563152,0.0003402,7]
[315012007,1708729855245,-163.197923,0.00034052,2]
[315012008,1708729855254,-158.196154,0.00034052,2]
[315012009,1708729855263,-155.007164,0.00034052,2]
[315012010,1708729855273,-158.196155,0.00034052,2]
[315012011,1708729855282,-155.007165,0.00034052,2]
[315012012,1708729855291,-167.860721,0.00034052,2]
[315012013,1708729855300,-882.73,0.00034076,2]
[315012014,1708729855312,-157.51738774,0.00034176,7]
[315012015,1708729855322,-8000.0,0.000342,2]
[315012016,1708729855331,-156.3052614,0.00034223,7]
[315012017,1708729855341,-154.20563152,0.00034227,7]
[315012018,1708729855350,-151.0,0.00034291,2]
[315012019,1708729855360,-159.39088986,0.00034328,7]
[315012020,1708729855369,-16161.890585,0.0003452,2]
[315012021,1708729855379,-2233.012272,0.0003452,2]
[315012022,1708729855388,-6119.73,0.00034521,2]
[315012023,1708729855398,-359.0,0.00034521,2]
[315012024,1708729855408,-150.611562,0.00034542,7]
[315012025,1708729855417,-13965.0,0.000346,3]
[315012026,1708729855426,-150.0,0.00034607,2]
[315012027,1708729855435,-156.57354394,0.00034639,7]
[315012028,1708729855445,-24242.835878,0.00034794,2]
[315012029,1708729855454,-3349.518409,0.00034794,2]
[315012030,1708729855463,-253.0,0.0003489,2]
[315012031,1708729855473,-4845.63646283,0.000349,2]
[315012032,1708729855482,-4845.63646279,0.000349,2]
[315012033,1708729855491,-4845.63646279,0.000349,2]
[315012034,1708729855500,-4845.63646279,0.000349,2]
[315012035,1708729855510,-4845.63646279,0.000349,2]
[315012036,1708729855518,-4845.63646279,0.000349,2]
[315012037,1708729855527,-4845.63646279,0.000349,2]
[315012038,1708729855536,-4845.63646279,0.000349,2]
[315012039,1708729855547,-1217.22,0.000349,2]
[315012040,1708729855556,-1217.22,0.000349,2]
[315012041,1708729855566,-1217.22,0.000349,2]
[315012042,1708729855575,-1217.22,0.000349,2]
[315012043,1708729855584,-1217.22,0.000349,2]
[315012044,1708729855593,-1217.22,0.000349,2]
[315012045,1708729855602,-1217.22,0.000349,2]
[315012046,1708729855611,-1217.22,0.000349,2]
[315012047,1708729855620,-1217.22,0.000349,2]
[315012048,1708729855629,-1217.22,0.000349,2]
[315012049,1708729855638,-1217.22,0.000349,2]
[315012050,1708729855648,-1217.22,0.000349,2]
[315012051,1708729855657,-1217.22,0.000349,2]
[315012052,1708729855666,-1217.22,0.000349,2]
[315012053,1708729855675,-1217.22,0.000349,2]
[315012054,1708729855685,-1217.22,0.000349,2]
[315012055,1708729855693,-1217.22,0.000349,2]
[315012056,1708729855702,-1217.22,0.000349,2]
[315012057,1708729855712,-1217.22,0.000349,2]
[315012058,1708729855721,-1217.22,0.000349,2]
[315012059,1708729855730,-32323.781171,0.00034931,2]
[315012060,1708729855739,-4466.024545,0.00034931,2]
[315012061,1708729855748,-169.46404024,0.0003499,2]
[315012062,1708729855757,-586.90975074,0.00035,4]
[315012063,1708729855766,-229.20433756,0.00035,7]
[315012064,1708729855775,-499.999998,0.00035,2]
[315012065,1708729855783,-2146.66845034,0.00035,30]
[315012066,1708729855792,-155.20925086,0.00035,4]
[315012067,1708729855801,-2217.17203199,0.00035,7]
[315012068,1708729855811,-1023.89729926,0.00035,2]
[315012069,1708729855821,-58000.0,0.00035,3]
[315012070,1708729855831,-23433.2341215,0.00035,2]
[315012071,1708729855841,-23433.2341215,0.00035,2]
[315012072,1708729855850,-184.9172368,0.00035,2]
[315012073,1708729855859,-184.9172368,0.00035,2]
[315012074,1708729855869,-151.0,0.00035,7]
[315012075,1708729855878,-151.0,0.00035,7]
[315012076,1708729855887,-151.0,0.00035,7]
[315012077,1708729855897,-166.546488,0.00035,7]
[315012078,1708729855907,-151.0,0.00035,7]
[315012079,1708729855916,-40404.726464,0.00035068,2]
[315012080,1708729855926,-5582.530682,0.00035068,2]
[315012081,1708729855935,-150.611562,0.00035089,7]
[315012082,1708729855944,-10004.88,0.000351,2]
[315012083,1708729855953,-154.20563152,0.00035108,7]
[315012084,1708729855963,-154.20563152,0.00035123,7]
[315012085,1708729855973,-154.20563152,0.00035139,7]
[315012086,1708729855982,-150.611562,0.0003514,7]
[315012087,1708729855992,-160.49481862,0.00035141,7]
[315012088,1708729856001,-157.51738774,0.00035149,7]
[315012089,1708729856010,-163.70167317,0.00035157,7]
[315012090,1708729856020,-56566.61705,0.00035342,2]
[315012091,1708729856030,-7815.542955,0.00035342,2]
[315012092,1708729856039,-153.43437171,0.000354,2]
[315012093,1708729856048,-645.48,0.00035441,2]
[315012094,1708729856058,-150.0,0.00035472,2]
[315012095,1708729856067,-4845.63646279,0.00035532,2]
[315012096,1708729856076,-153.50007698,0.00035584,7]
[315012097,1708729856086,-64647.562343,0.00035589,2]
[315012098,1708729856095,-8932.049091,0.00035589,2]
[315012099,1708729856104,-848.53,0.0003559,2]
[315012100,1708729856114,-1233.00739774,0.000356,2]
[315012101,1708729856124,-8000.0,0.000356,2]
[315012102,1708729856134,-150.49,0.00035616,2]
[315012103,1708729856143,-2852.78914215,0.000357,2]
[315012104,1708729856153,-3416.47,0.000357,7]
[315012105,1708729856163,-2700.05,0.000357,7]
[315012106,1708729856175,-4298.72,0.000357,7]
[315012107,1708729856184,-155.57626885,0.00035733,7]
[315012108,1708729856193,-189.92,0.00035792,2]
[315012109,1708729856203,-6119.73,0.00035798,2]
[315012110,1708729856213,-5800.0,0.00035882,2]
[315012111,1708729856223,-5800.0,0.0003589,2]
[315012112,1708729856232,-2688.96629497,0.00036,2]
[315012113,1708729856241,-86680.72921956,0.00036,2]
[315012114,1708729856250,-168.0,0.00036,2]
[315012115,1708729856260,-308.88,0.00036,2]
[315012116,1708729856269,-161.43,0.00036008,2]
[315012117,1708729856278,-154.20563152,0.00036018,7]
[315012118,1708729856287,-1000.0,0.00036109,2]
[315012119,1708729856297,-150.0,0.00036161,7]
[315012120,1708729856306,-1109.25762475,0.000362,2]
[315012121,1708729856315,-373.03002978,0.000362,2]
[315012122,1708729856324,-1217.22,0.000362,3]
[315012123,1708729856333,-1217.22,0.000362,3]
[315012124,1708729856342,-1217.22,0.000362,3]
[315012125,1708729856352,-1217.22,0.000362,3]
[315012126,1708729856360,-1217.22,0.000362,3]
[315012127,1708729856370,-1217.22,0.000362,3]
[315012128,1708729856379,-1217.22,0.000362,3]
[315012129,1708729856389,-1217.22,0.000362,3]
[315012130,1708729856399,-1217.22,0.000362,3]
[315012131,1708729856409,-1217.22,0.000362,3]
[315012132,1708729856419,-1217.22,0.000362,3]
[315012133,1708729856428,-1217.22,0.000362,3]
[315012134,1708729856437,-1217.22,0.000362,3]
[315012135,1708729856447,-1217.22,0.000362,3]
[315012136,1708729856456,-1217.22,0.000362,3]
[315012137,1708729856466,-1217.22,0.000362,3]
[315012138,1708729856475,-1217.22,0.000362,3]
[315012139,1708729856485,-1217.22,0.000362,3]
[315012140,1708729856494,-1217.22,0.000362,3]
[315012141,1708729856504,-1217.22,0.000362,3]
[315012142,1708729856513,-1500.0,0.00036211,2]
[315012143,1708729856523,-1438.2,0.00036245,2]
[315012144,1708729856532,-364.0,0.00036247,2]
[315012145,1708729856542,-253.0,0.0003626,7]
[315012146,1708729856551,-2116.86101888,0.00036301,30]
[315012147,1708729856561,-154.20563152,0.0003633,7]
[315012148,1708729856572,-150.0,0.00036337,2]
[315012149,1708729856581,-177.595393,0.00036353,2]
[315012150,1708729856591,-523.01,0.00036426,2]
[315012151,1708729856600,-206.48,0.00036438,2]
[315012152,1708729856610,-154.20563152,0.00036442,7]
[315012153,1708729856619,-150.611562,0.0003663,7]
[315012154,1708729856629,-157.51738774,0.00036631,7]
[315012155,1708729856638,-155.76031539,0.00036633,7]
[315012156,1708729856649,-154.20563152,0.00036762,7]
[315012157,1708729856658,-154.20563152,0.00036765,7]
[315012158,1708729856668,-150.611562,0.00036813,7]
[315012159,1708729856677,-157.51738774,0.00036874,7]
[315012160,1708729856687,-154.20563152,0.00036893,7]
[315012161,1708729856696,-3416.47,0.000369,7]
[315012162,1708729856706,-2700.05,0.000369,7]
[315012163,1708729856715,-4298.72,0.000369,7]
[315012164,1708729856724,-500.0,0.0003699,10]
[315012165,1708729856735,-150.0,0.0003699,7]
[315012166,1708729856745,-150.0,0.0003699,7]
[315012167,1708729856755,-150.0,0.0003699,7]
[315012168,1708729856764,-150.0,0.0003699,7]
[315012169,1708729856774,-150.0,0.0003699,7]
[315012170,1708729856784,-150.0,0.0003699,7]
[315012171,1708729856793,-213.36830761,0.0003699,7]
[315012172,1708729856803,-150.0,0.0003699,7]
[315012173,1708729856813,-150.0,0.0003699,7]
[315012174,1708729856823,-156.57354396,0.00036998,7]
[315012175,1708729856833,-6469.0,0.00037,2]
[315012176,1708729856842,-154.20563152,0.00037003,7]
[315012177,1708729856852,-152.0,0.00037008,3]
[315012178,1708729856862,-150.0,0.00037035,7]
[315012179,1708729856871,-160.49481862,0.00037041,7]
[315012180,1708729856881,-6119.73,0.00037075,2]
[315012181,1708729856891,-150.0,0.0003708,7]
[315012182,1708729856901,-1500.0,0.00037094,2]
[315012183,1708729856910,-200.0,0.000371,10]
[315012184,1708729856919,-4845.63646279,0.00037111,2]
[315012185,1708729856929,-150.0,0.00037123,7]
[315012186,1708729856940,-150.0,0.00037125,7]
[315012187,1708729856950,-150.0,0.00037171,7]
[315012188,1708729856959,-153.43437171,0.00037186,2]
[315012189,1708729856969,-204.0,0.00037189,2]
[315012190,1708729856979,-150.0,0.00037203,2]
[315012191,1708729856989,-150.0,0.00037216,7]
[315012192,1708729856999,-150.0,0.00037218,7]
[315012193,1708729857009,-150.611562,0.00037254,7]
[315012194,1708729857019,-150.0,0.00037255,7]
[315012195,1708729857029,-150.0,0.00037261,7]
[315012196,1708729857040,-150.611562,0.00037305,7]
[315012197,1708729857049,-150.0,0.00037306,7]
[315012198,1708729857060,-150.611562,0.00037319,7]
[315012199,1708729857070,-308.88,0.0003733,2]
[315012200,1708729857079,-150.0,0.00037333,7]
[315012201,1708729857089,-154.98329938,0.00037341,7]
[315012202,1708729857098,-150.0,0.00037351,7]
[315012203,1708729857107,-150.0,0.00037364,7]
[315012204,1708729857117,-150.0,0.00037388,7]
[315012205,1708729857127,-150.0,0.00037396,7]
[315012206,1708729857137,-168.0,0.00037397,2]
[315012207,1708729857148,-150.611562,0.00037422,7]
[315012208,1708729857159,-150.0,0.00037442,7]
[315012209,1708729857172,-150.0,0.00037447,7]
[315012210,1708729857182,-157.51738774,0.00037459,7]
[315012211,1708729857192,-150.0,0.00037487,7]
[315012212,1708729857203,-1500.0,0.00037494,2]
[315012213,1708729857215,-150.0,0.0003752,7]
[315012214,1708729857226,-150.0,0.00037532,7]
[315012215,1708729857236,-152.6064863,0.00037572,7]
[315012216,1708729857247,-150.0,0.00037577,7]
[315012217,1708729857257,-1217.22,0.000376,3]
[315012218,1708729857269,-1217.22,0.000376,3]
[315012219,1708729857279,-1217.22,0.000376,3]
[315012220,1708729857289,-1217.22,0.000376,3]
[315012221,1708729857298,-1217.22,0.000376,3]
[315012222,1708729857307,-1217.22,0.000376,3]
[315012223,1708729857316,-1217.22,0.000376,3]
[315012224,1708729857326,-1217.22,0.000376,3]
[315012225,1708729857335,-1217.22,0.000376,3]
[315012226,1708729857345,-1217.22,0.000376,3]
[315012227,1708729857354,-1217.22,0.000376,3]
[315012228,1708729857363,-1217.22,0.000376,3]
[315012229,1708729857373,-1217.22,0.000376,3]
[315012230,1708729857383,-1217.22,0.000376,3]
[315012231,1708729857394,-1217.22,0.000376,3]
[315012232,1708729857404,-1217.22,0.000376,3]
[315012233,1708729857414,-1217.22,0.000376,3]
[315012234,1708729857425,-1217.22,0.000376,3]
[315012235,1708729857434,-1217.22,0.000376,3]
[315012236,1708729857445,-1217.22,0.000376,3]
[315012237,1708729857455,-150.0,0.00037622,7]
[315012238,1708729857466,-253.0,0.0003763,7]
[315012239,1708729857476,-154.20563152,0.00037631,7]
[315012240,1708729857490,-154.20563152,0.00037633,7]
[315012241,1708729857500,-150.0,0.00037653,7]
[315012242,1708729857510,-159.39088986,0.00037665,7]
[315012243,1708729857519,-150.0,0.00037667,7]
[315012244,1708729857529,-168.75267509,0.00037668,7]
[315012245,1708729857540,-180.0,0.00037671,2]
[315012246,1708729857550,-150.0,0.00037675,7]
[315012247,1708729857559,-150.0,0.00037675,7]
[315012248,1708729857571,-150.0,0.00037675,7]
[315012249,1708729857580,-645.48,0.00037705,2]
[315012250,1708729857590,-150.0,0.00037713,7]
[315012251,1708729857600,-150.0,0.00037737,7]
[315012252,1708729857609,-150.0,0.00037758,7]
[315012253,1708729857620,-159.39088988,0.00037762,7]
[315012254,1708729857630,-150.0,0.00037785,7]
[315012255,1708729857641,-1500.0,0.00037786,2]
[315012256,1708729857654,-163.11299117,0.000378,2]
[315012257,1708729857665,-150.0,0.00037803,7]
[315012258,1708729857676,-157.51738774,0.00037845,7]
[315012259,1708729857686,-150.0,0.00037848,7]
[315012260,1708729857696,-150.0,0.00037893,7]
[315012261,1708729857711,-157.51738774,0.00037894,7]
[315012262,1708729857724,-666.0,0.00037899,2]
[315012263,1708729857734,-3416.47,0.000379,7]
[315012264,1708729857744,-2700.05,0.000379,7]
[315012265,1708729857755,-4298.72,0.000379,7]
[315012266,1708729857766,-451.39229928,0.000379,2]
[315012267,1708729857776,-151.0,0.000379,7]
[315012268,1708729857786,-151.0,0.000379,7]
[315012269,1708729857795,-686486.548871,0.000379,3]
[315012270,1708729857807,-151.0,0.000379,7]
[315012271,1708729857817,-151.0,0.000379,7]
[315012272,1708729857827,-150.0,0.00037903,7]
[315012273,1708729857837,-150.0,0.00037918,7]
[315012274,1708729857847,-150.0,0.00037938,7]
[315012275,1708729857858,-154.20563152,0.00037946,7]
[315012276,1708729857867,-848.53,0.0003796,2]
[315012277,1708729857877,-160.49481862,0.00037961,7]
[315012278,1708729857889,-150.0,0.00037984,7]
[315012279,1708729857902,-937.19670254,0.00038,2]
[315012280,1708729857913,-321.0,0.00038,2]
[315012281,1708729857924,-166.50369129,0.00038,2]
[315012282,1708729857935,-150.0,0.00038018,7]
[315012283,1708729857947,-150.0,0.00038018,7]
[315012284,1708729857958,-150.0,0.00038029,7]
[315012285,1708729857968,-150.0,0.00038051,7]
[315012286,1708729857978,-1500.0,0.00038061,2]
[315012287,1708729857990,-150.0,0.00038068,2]
[315012288,1708729858000,-150.0,0.00038074,7]
[315012289,1708729858011,-500.0,0.00038086,10]
[315012290,1708729858021,-200.0,0.000381,11]
[315012291,1708729858032,-151.0,0.00038101,2]
[315012292,1708729858043,-250.49088,0.00038101,2]
[315012293,1708729858053,-2872.91581318,0.00038109,10]
[315012294,1708729858063,-2872.91581316,0.00038109,10]
[315012295,1708729858073,-2872.91581316,0.00038109,10]
[315012296,1708729858083,-2872.91581316,0.00038109,10]
[315012297,1708729858093,-2872.91581316,0.00038109,10]
[315012298,1708729858103,-150.0,0.00038111,7]
[315012299,1708729858113,-150.0,0.00038119,7]
[315012300,1708729858124,-157.51738774,0.0003812,7]
[315012301,1708729858134,-150.0,0.00038132,7]
[315012302,1708729858146,-150.0,0.00038164,7]
[315012303,1708729858159,-150.0,0.00038183,7]
[315012304,1708729858169,-150.0,0.00038209,7]
[315012305,1708729858179,-150.0,0.00038255,7]
[315012306,1708729858190,-150.611562,0.00038273,7]
[315012307,1708729858201,-204.0,0.00038275,4]
[315012308,1708729858211,-1000.0,0.00038299,2]
[315012309,1708729858221,-150.0,0.000383,7]
[315012310,1708729858230,-150.0,0.00038316,7]
[315012311,1708729858240,-150.0,0.00038345,7]
[315012312,1708729858251,-6119.73,0.00038352,2]
[315012313,1708729858261,-3487.34,0.00038356,15]
[315012314,1708729858271,-150.49,0.00038356,2]
[315012315,1708729858280,-1025.29127368,0.0003836,7]
[315012316,1708729858290,-1025.29127368,0.0003836,7]
[315012317,1708729858299,-1025.29127368,0.0003836,7]
[315012318,1708729858309,-1025.29127368,0.0003836,7]
[315012319,1708729858319,-1025.29127368,0.0003836,7]
[315012320,1708729858329,-1025.29127368,0.0003836,7]
[315012321,1708729858339,-1025.29127368,0.0003836,7]
[315012322,1708729858349,-1025.29127368,0.0003836,7]
[315012323,1708729858359,-1025.29127368,0.0003836,7]
[315012324,1708729858368,-1025.29127368,0.0003836,7]
[315012325,1708729858378,-1025.29127368,0.0003836,7]
[315012326,1708729858388,-1025.29127368,0.0003836,7]
[315012327,1708729858401,-1025.29127368,0.0003836,7]
[315012328,1708729858410,-1025.29127368,0.0003836,7]
[315012329,1708729858420,-1025.29127368,0.0003836,7]
[315012330,1708729858431,-1025.29127368,0.0003836,7]
[315012331,1708729858440,-1025.29127368,0.0003836,7]
[315012332,1708729858452,-1025.29127368,0.0003836,7]
[315012333,1708729858462,-1025.29127368,0.0003836,7]
[315012334,1708729858472,-1025.29,0.0003836,7]
[315012335,1708729858483,-459.97552726,0.0003836,7]
[315012336,1708729858493,-459.97552726,0.0003836,7]
[315012337,1708729858503,-459.97552726,0.0003836,7]
[315012338,1708729858513,-459.97552726,0.0003836,7]
[315012339,1708729858524,-459.97552726,0.0003836,7]
[315012340,1708729858534,-459.97552726,0.0003836,7]
[315012341,1708729858544,-459.97552726,0.0003836,7]
[315012342,1708729858555,-459.97552726,0.0003836,7]
[315012343,1708729858568,-459.97552726,0.0003836,7]
[315012344,1708729858578,-459.97552726,0.0003836,7]
[315012345,1708729858592,-459.97552726,0.0003836,7]
[315012346,1708729858602,-459.97552726,0.0003836,7]
[315012347,1708729858614,-459.97552726,0.0003836,7]
[315012348,1708729858625,-459.97552726,0.0003836,7]
[315012349,1708729858636,-459.97552726,0.0003836,7]
[315012350,1708729858647,-459.97552726,0.0003836,7]
[315012351,1708729858658,-459.97552726,0.0003836,7]
[315012352,1708729858669,-459.97552726,0.0003836,7]
[315012353,1708729858679,-459.97552726,0.0003836,7]
[315012354,1708729858689,-459.97,0.0003836,7]
[315012355,1708729858699,-720.26818974,0.0003836,7]
[315012356,1708729858709,-720.26818974,0.0003836,7]
[315012357,1708729858718,-720.26818974,0.0003836,7]
[315012358,1708729858729,-720.26818974,0.0003836,7]
[315012359,1708729858739,-720.26818974,0.0003836,7]
[315012360,1708729858928,-720.26818974,0.0003836,7]
[315012361,1708729858938,-720.26818974,0.0003836,7]
[315012362,1708729858947,-720.26818974,0.0003836,7]
[315012363,1708729858957,-720.26818974,0.0003836,7]
[315012364,1708729858966,-720.26818974,0.0003836,7]
[315012365,1708729858976,-720.26818974,0.0003836,7]
[315012366,1708729858986,-720.26818974,0.0003836,7]
[315012367,1708729858995,-720.26818974,0.0003836,7]
[315012368,1708729859005,-720.26818974,0.0003836,7]
[315012369,1708729859014,-720.26818974,0.0003836,7]
[315012370,1708729859023,-720.26818974,0.0003836,7]
[315012371,1708729859032,-720.26818974,0.0003836,7]
[315012372,1708729859041,-720.26818974,0.0003836,7]
[315012373,1708729859051,-720.26818974,0.0003836,7]
[315012374,1708729859060,-720.26,0.0003836,7]
[315012375,1708729859069,-288.92193258,0.0003836,7]
[315012376,1708729859078,-288.92193258,0.0003836,7]
[315012377,1708729859087,-288.92193258,0.0003836,7]
[315012378,1708729859096,-288.92193258,0.0003836,7]
[315012379,1708729859105,-288.92193258,0.0003836,7]